[Event "7. Arber-Senioren-Cup 2019"]
[Site "Bodenmais"]
[Date "2019.07.30"]
[Round "4.20"]
[White "Otto, Klaus"]
[Black "Mahnke, Ralf"]
[Result "1/2-1/2"]
[ECO "C50"]
[WhiteElo "1725"]
[BlackElo "1925"]
[Annotator "NA"]
[PlyCount "46"]
[EventDate "2019.07.27"]
[EventType "swiss"]
[EventCountry "GER"]
[SourceTitle "playchess.com"]
[Source "ChessBase"]
[SourceQuality "1"]
[TimeControl "5400+30"]

1. e4 {[%emt 0:00:00]} e5 {[%emt 0:00:00]} 2. Nf3 {[%emt 0:00:00]} Nc6 {[%emt 0:00:00]} 3. Bc4 {[%emt 0:00:00]} Bc5 {[%emt 0:00:00]} 4. O-O {[%emt 0:00:00]} Nf6 {[%emt 0:00:00]} 5. Nc3 {[%emt 0:00:00]} O-O {[%emt 0:00:00]} 6. a3 {[%emt 0:00:00]} d6 {[%emt 0:00:00]} 7. b4 {[%emt 0:00:00]} Bb6 {[%emt 0:00:00]} 8. Be2 {[%emt 0:00:00]} Be6 {[%emt 0:00:00]} 9. d3 {[%emt 0:00:00]} h6 {[%emt 0:00:00]} 10. Na4 {[%emt 0:00:00]} Nd4 {[%emt 0:00:00]} 11. Nxd4 {[%emt 0:00:00]} Bxd4 {[%emt 0:00:00]} 12. c3 {[%emt 0:00:00]} Bb6 {[%emt 0:00:00]} 13. Nxb6 {[%emt 0:00:00]} axb6 {[%emt 0:00:00]} 14. c4 {[%emt 0:00:00]} c6 {[%emt 0:00:00]} 15. Bb2 {[%emt 0:00:00]} c5 {[%emt 0:00:00]} 16. b5 {[%emt 0:00:00]} Ne8 {[%emt 0:00:00]} 17. f4 {[%emt 0:00:00]} exf4 {[%emt 0:00:00]} 18. Rxf4 {[%emt 0:00:00]} Qg5 {[%emt 0:00:00]} 19. Rf3 {[%emt 0:00:00]} Qg6 {[%emt 0:00:00]} 20. Rg3 {[%emt 0:00:00]} Qh7 {[%emt 0:00:00]} 21. Qd2 {[%emt 0:00:00]} f5 {[%emt 0:00:00]} 22. exf5 {[%emt 0:00:00]} Bxf5 {[%emt 0:00:00]} 23. Rf1 Nf6 1/2-1/2

[Event "7. Arber-Senioren-Cup 2019"]
[Site "Bodenmais"]
[Date "2019.07.30"]
[Round "4.21"]
[White "Riess, Michael"]
[Black "Ketzscher, Roland"]
[Result "1/2-1/2"]
[ECO "A00"]
[WhiteElo "1686"]
[BlackElo "1917"]
[Annotator "NA"]
[PlyCount "66"]
[EventDate "2019.07.27"]
[EventType "swiss"]
[EventCountry "GER"]
[SourceTitle "playchess.com"]
[Source "ChessBase"]
[SourceQuality "1"]
[TimeControl "5400+30"]

1. Nc3 {[%emt 0:00:00]} d5 {[%emt 0:00:00]} 2. e4 {[%emt 0:00:00]} dxe4 {[%emt 0:00:00]} 3. Nxe4 {[%emt 0:00:00]} e5 {[%emt 0:00:00]} 4. Nf3 {[%emt 0:00:00]} Bg4 {[%emt 0:00:00]} 5. Be2 {[%emt 0:00:00]} Nc6 {[%emt 0:00:00]} 6. O-O {[%emt 0:00:00]} Be7 {[%emt 0:00:00]} 7. d3 {[%emt 0:00:00]} Nf6 {[%emt 0:00:00]} 8. Be3 {[%emt 0:00:00]} O-O {[%emt 0:00:00]} 9. Nxf6+ {[%emt 0:00:00]} Bxf6 {[%emt 0:00:00]} 10. h3 {[%emt 0:00:00]} Bh5 {[%emt 0:00:00]} 11. Nd2 {[%emt 0:00:00]} Bxe2 {[%emt 0:00:00]} 12. Qxe2 {[%emt 0:00:00]} Be7 {[%emt 0:00:00]} 13. Nb3 {[%emt 0:00:00]} b6 {[%emt 0:00:00]} 14. a3 {[%emt 0:00:00]} a5 {[%emt 0:00:00]} 15. Qg4 {[%emt 0:00:00]} Kh8 {[%emt 0:00:00]} 16. Rad1 {[%emt 0:00:00]} a4 {[%emt 0:04:03]} 17. Nd2 {[%emt 0:00:00]} f5 {[%emt 0:01:10]} 18. Qf3 {[%emt 0:00:00]} Qd7 {[%emt 0:06:57]} 19. Nb1 {[%emt 0:00:00]} f4 {[%emt 0:02:01]} 20. Bd2 {[%emt 0:00:00]} Nd4 {[%emt 0:01:17]} 21. Qe4 {[%emt 0:00:00]} f3 {[%emt 0:02:46]} 22. Qg4 {[%emt 0:00:00]} Qc6 {[%emt 0:06:37]} 23. Qe4 {[%emt 0:00:00]} Qf6 {[%emt 0:06:19]} 24. g3 {[%emt 0:01:59]} Rae8 {[%emt 0:03:32]} 25. Nc3 {[%emt 0:01:30]} Qe6 {[%emt 0:01:58]} 26. Qg4 {[%emt 0:01:01]} Qxg4 {[%emt 0:06:58]} 27. hxg4 {[%emt 0:00:11]} Nxc2 {[%emt 0:00:16]} 28. Nxa4 {[%emt 0:01:09]} Nd4 {[%emt 0:00:10]} 29. Nc3 {[%emt 0:00:53]} Rd8 {[%emt 0:01:21]} 30. Rfe1 {[%emt 0:03:35]} Nc6 {[%emt 0:06:53]} 31. Be3 {[%emt 0:01:02]} Rd7 {[%emt 0:01:11]} 32. Nb5 {[%emt 0:04:09]} Nd8 {[%emt 0:06:24]} 33. d4 {[%emt 0:01:15]} exd4 1/2-1/2

[Event "7. Arber-Senioren-Cup 2019"]
[Site "Bodenmais"]
[Date "2019.07.30"]
[Round "4.22"]
[White "Supplieth, Peter"]
[Black "Loibl, Johann"]
[Result "1-0"]
[ECO "A20"]
[WhiteElo "1880"]
[BlackElo "1760"]
[Annotator "NA"]
[PlyCount "153"]
[EventDate "2019.07.27"]
[EventType "swiss"]
[EventCountry "GER"]
[SourceTitle "playchess.com"]
[Source "ChessBase"]
[SourceQuality "1"]
[TimeControl "5400+30"]

1. c4 {[%emt 0:00:00]} e5 {[%emt 0:00:00]} 2. g3 {[%emt 0:00:00]} f5 {[%emt 0:00:00]} 3. Bg2 {[%emt 0:00:00]} Nf6 {[%emt 0:00:00]} 4. Nc3 {[%emt 0:00:00]} Bc5 {[%emt 0:00:00]} 5. e3 {[%emt 0:00:00]} O-O {[%emt 0:00:00]} 6. Nge2 {[%emt 0:00:00]} Nc6 {[%emt 0:00:00]} 7. d4 {[%emt 0:00:00]} exd4 {[%emt 0:00:00]} 8. exd4 {[%emt 0:00:00]} Bb4 {[%emt 0:00:00]} 9. O-O {[%emt 0:00:00] A25: English Opening vs King's Indian with ...Nc6 but without early d3} Bxc3 {[%emt 0:00:00]} 10. Nxc3 {[%emt 0:00:00]} d6 {[%emt 0:00:00]} 11. Bf4 {[%emt 0:00:00]} Ne7 $146 {[%emt 0:00:00]} ({Predecessor:} 11... a6 12. a4 Re8 13. Bg5 Bd7 14. Nd5 Rb8 15. Nxf6+ gxf6 16. Bh4 Qe7 {0-1 (42) Lobato,N (2095)-Pereira,J (1921) Sao Luis 2016}) 12. Qb3 {[%emt 0:00:00]} c6 {[%emt 0:00:00]} 13. Rfe1 {[%emt 0:00:00]} d5 {[%emt 0:03:57]} 14. cxd5 {[%emt 0:00:00]} Nexd5 {[%emt 0:02:07]} 15. Re5 {[%emt 0:00:00]} Kh8 {[%emt 0:08:13]} 16. Nxd5 {[%emt 0:00:00]} cxd5 {[%emt 0:02:27]} 17. Bg5 {[%emt 0:00:00]} b6 {[%emt 0:11:06]} 18. Bxd5 {[%emt 0:00:33]} Rb8 {[%emt 0:00:35]} 19. Rae1 {[%emt 0:01:05]} Bb7 {[%emt 0:01:19]} 20. Bxf6 {[%emt 0:01:03]} Qxf6 {[%emt 0:03:45]} 21. Qf3 {[%emt 0:01:55]} Bxd5 {[%emt 0:02:01]} 22. Rxd5 {[%emt 0:05:10]} Rbd8 {[%emt 0:05:10]} 23. Ree5 {[%emt 0:01:59]} g6 {[%emt 0:01:08]} 24. Qe3 {[%emt 0:02:11]} Qc6 {[%emt 0:04:28]} 25. Rxd8 {[%emt 0:01:48]} Rxd8 {[%emt 0:00:20]} 26. Qc3 {[%emt 0:05:10]} Qxc3 {[%emt 0:04:43]} 27. bxc3 {[%emt 0:00:06]} Rd7 {[%emt 0:00:58]} 28. Kf1 {[%emt 0:02:13]} Kg7 {[%emt 0:01:57]} 29. Ke2 {[%emt 0:00:10]} Kf6 {[%emt 0:02:03]} 30. f4 {[%emt 0:00:07]} a6 {[%emt 0:04:46]} 31. Kd3 {[%emt 0:02:14]} b5 {[%emt 0:01:35]} 32. h4 {[%emt 0:00:25]} Rb7 {[%emt 0:01:59]} 33. Rc5 {[%emt 0:00:36]} Rb6 {[%emt 0:04:16]} 34. a3 {[%emt 0:01:00]} Re6 {[%emt 0:04:01]} 35. Re5 $18 {[%emt 0:02:08]} Rc6 {[%emt 0:01:21]} 36. d5 {[%emt 0:00:42]} Rc4 {[%emt 0:03:00]} 37. Re6+ {[%emt 0:00:19]} Kf7 {[%emt 0:00:18]} 38. Rxa6 {[%emt 0:00:11]} Rc5 {[%emt 0:03:05]} 39. Rd6 {[%emt 0:02:48]} Ke7 {[%emt 0:00:58]} 40. Re6+ {[%emt 0:00:33]} Kd7 {[%emt 0:00:32]} 41. Re5 {[%emt 0:00:15]} Kd6 {[%emt 0:02:53]} 42. Re6+ {[%emt 0:07:49]} Kd7 {[%emt 0:00:56]} 43. Ra6 {[%emt 0:02:53]} Rxd5+ {[%emt 0:00:40]} 44. Ke3 {[%emt 0:00:43]} Rc5 {[%emt 0:03:25]} 45. Kd4 {[%emt 0:00:52]} Rc4+ {[%emt 0:01:32]} 46. Kd3 {[%emt 0:00:08]} Rc7 {[%emt 0:09:44]} 47. Rb6 {[%emt 0:00:17]} Ra7 {[%emt 0:00:26]} 48. Rxb5 {[%emt 0:00:06]} Rxa3 {[%emt 0:00:08]} 49. Rb7+ {[%emt 0:00:09]} Ke6 {[%emt 0:00:13]} 50. Rxh7 {[%emt 0:00:29]} Ra1 {[%emt 0:00:24]} 51. Rh6 {[%emt 0:01:41]} Kf7 {[%emt 0:00:43]} 52. h5 {[%emt 0:00:23]} gxh5 {[%emt 0:02:02]} 53. Rxh5 {[%emt 0:00:06]} Kf6 {[%emt 0:00:21]} 54. Kd4 {[%emt 0:01:34]} Rd1+ {[%emt 0:00:55]} 55. Kc4 {[%emt 0:00:27]} Re1 {[%emt 0:01:17]} 56. Rg5 {[%emt 0:01:09]} Rc1 {[%emt 0:02:21]} 57. Kd4 {[%emt 0:00:17]} Rd1+ {[%emt 0:00:07]} 58. Kc5 {[%emt 0:00:11]} Rd8 {[%emt 0:00:31]} 59. c4 {[%emt 0:00:08]} Rc8+ {[%emt 0:00:38]} 60. Kd4 {[%emt 0:00:44]} Rd8+ {[%emt 0:00:32]} 61. Kc3 {[%emt 0:00:09]} Rc8 {[%emt 0:00:25]} 62. g4 {[%emt 0:02:26]} fxg4 {[%emt 0:00:33]} 63. c5 {[%emt 0:00:31]} g3 {[%emt 0:01:00]} 64. Kc4 {[%emt 0:00:08]} Re8 {[%emt 0:01:43]} 65. c6 {[%emt 0:03:38]} Re4+ {[%emt 0:01:38]} 66. Kd5 {[%emt 0:00:34]} Rxf4 {[%emt 0:00:41]} 67. Rxg3 {[%emt 0:00:54]} Rf1 68. Re3 {[%emt 0:06:51]} Rd1+ {[%emt 0:02:25]} 69. Kc5 {[%emt 0:00:29]} Rc1+ {[%emt 0:00:46]} 70. Kd6 {[%emt 0:00:08]} Rd1+ {[%emt 0:00:09]} 71. Kc7 {[%emt 0:00:09]} Rc1 {[%emt 0:00:34]} 72. Kd7 {[%emt 0:02:34]} Rd1+ {[%emt 0:00:15]} 73. Kc8 {[%emt 0:00:07]} Rc1 {[%emt 0:02:26]} 74. c7 {[%emt 0:00:08]} Rc2 {[%emt 0:00:13]} 75. Rb3 {[%emt 0:01:16]} Ke7 {[%emt 0:01:10]} 76. Kb7 {[%emt 0:00:19]} Kd7 {[%emt 0:00:44]} 77. Rd3+ {[%emt 0:00:25]} 1-0

[Event "7. Arber-Senioren-Cup 2019"]
[Site "Bodenmais"]
[Date "2019.07.30"]
[Round "4.23"]
[White "Schmid, Johann"]
[Black "Trinkl, Andreas"]
[Result "1/2-1/2"]
[ECO "A40"]
[WhiteElo "1842"]
[BlackElo "1620"]
[Annotator "NA"]
[PlyCount "84"]
[EventDate "2019.07.27"]
[EventType "swiss"]
[EventCountry "GER"]
[SourceTitle "playchess.com"]
[Source "ChessBase"]
[SourceQuality "1"]
[TimeControl "5400+30"]

1. d4 {[%emt 0:00:00]} g6 {[%emt 0:00:00]} 2. Nf3 {[%emt 0:00:00]} Bg7 {[%emt 0:00:00]} 3. Bf4 {[%emt 0:00:00]} d6 {[%emt 0:00:00]} 4. e3 {[%emt 0:00:00]} a6 {[%emt 0:00:00]} 5. Be2 {[%emt 0:00:00]} Nf6 {[%emt 0:00:00]} 6. O-O {[%emt 0:00:00]} O-O {[%emt 0:00:00]} 7. h3 {[%emt 0:00:00]} Nbd7 {[%emt 0:00:00]} 8. Re1 {[%emt 0:00:00]} b5 {[%emt 0:00:00]} 9. a3 {[%emt 0:00:00]} Bb7 {[%emt 0:00:00]} 10. Bh2 {[%emt 0:00:00]} c5 {[%emt 0:00:00]} 11. c3 {[%emt 0:00:00]} Ne4 {[%emt 0:00:00]} 12. Nbd2 {[%emt 0:00:00]} f5 {[%emt 0:00:00]} 13. Nxe4 {[%emt 0:00:00]} fxe4 {[%emt 0:00:00]} 14. Ng5 {[%emt 0:00:00]} Rf6 {[%emt 0:04:46]} 15. Qc2 {[%emt 0:00:00]} d5 {[%emt 0:03:00]} 16. Bg4 {[%emt 0:00:00]} Nf8 {[%emt 0:03:47]} 17. h4 {[%emt 0:00:00]} c4 {[%emt 0:07:28]} 18. b3 {[%emt 0:00:00]} Bc8 {[%emt 0:05:24]} 19. Be2 {[%emt 0:01:37]} h6 {[%emt 0:11:30]} 20. Nh3 {[%emt 0:00:09]} Bxh3 21. gxh3 {[%emt 0:00:10]} cxb3 {[%emt 0:15:05]} 22. Qxb3 {[%emt 0:00:34]} Rc6 {[%emt 0:02:25]} 23. Ra2 {[%emt 0:12:06]} h5 {[%emt 0:01:33]} 24. Bg3 {[%emt 0:02:11]} e6 {[%emt 0:01:09]} 25. Kh2 {[%emt 0:02:57]} Rac8 {[%emt 0:01:09]} 26. Rc2 {[%emt 0:01:03]} Bf6 {[%emt 0:04:24]} 27. Rf1 {[%emt 0:16:41]} Qa5 {[%emt 0:05:23]} 28. Rfc1 {[%emt 0:02:56]} Be7 {[%emt 0:00:53]} 29. f3 {[%emt 0:02:20]} Qxa3 {[%emt 0:05:58]} 30. Qa2 {[%emt 0:05:09]} Qxa2 {[%emt 0:07:03]} 31. Rxa2 {[%emt 0:00:14]} Rxc3 {[%emt 0:00:09]} 32. Rxc3 {[%emt 0:00:23]} Rxc3 {[%emt 0:00:01]} 33. Bf2 {[%emt 0:08:00]} exf3 {[%emt 0:04:18]} 34. Bxf3 {[%emt 0:00:22]} Ba3 {[%emt 0:01:00]} 35. Kg3 {[%emt 0:01:43]} b4 {[%emt 0:00:46]} 36. Kf4 {[%emt 0:06:15]} a5 {[%emt 0:02:51]} 37. Be1 {[%emt 0:01:28]} Rc7 {[%emt 0:01:40]} 38. Rg2 {[%emt 0:03:55]} Kf7 {[%emt 0:00:46]} 39. e4 {[%emt 0:01:12]} dxe4 {[%emt 0:04:19]} 40. Bxe4 {[%emt 0:00:20]} Bc1+ {[%emt 0:01:08]} 41. Ke5 {[%emt 0:00:31]} Nd7+ {[%emt 0:05:16]} 42. Kd6 {[%emt 0:01:03]} Bf4# 1/2-1/2

[Event "7. Arber-Senioren-Cup 2019"]
[Site "Bodenmais"]
[Date "2019.07.30"]
[Round "4.24"]
[White "Busch, Joerg"]
[Black "Auterhoff, Juergen"]
[Result "1-0"]
[ECO "A45"]
[WhiteElo "1851"]
[BlackElo "1673"]
[Annotator "NA"]
[PlyCount "121"]
[EventDate "2019.07.27"]
[EventType "swiss"]
[EventCountry "GER"]
[SourceTitle "playchess.com"]
[Source "ChessBase"]
[SourceQuality "1"]
[TimeControl "5400+30"]

1. d4 {[%emt 0:00:00]} Nf6 {[%emt 0:00:00]} 2. Bf4 {[%emt 0:00:00]} d5 {[%emt 0:00:00]} 3. e3 Bf5 {[%emt 0:00:00]} 4. Bd3 {[%emt 0:00:00]} Bxd3 {[%emt 0:00:00]} 5. Qxd3 {[%emt 0:00:00]} c6 {[%emt 0:00:00]} 6. Qb3 {[%emt 0:00:00]} Qb6 {[%emt 0:00:00]} 7. Qxb6 {[%emt 0:00:00]} axb6 {[%emt 0:00:00]} 8. Nd2 {[%emt 0:00:00]} e6 {[%emt 0:00:00]} 9. Ngf3 {[%emt 0:00:00]} Nbd7 {[%emt 0:00:00]} 10. O-O {[%emt 0:00:00]} Be7 {[%emt 0:00:00]} 11. h3 {[%emt 0:00:00]} O-O {[%emt 0:00:00]} 12. a3 {[%emt 0:00:00]} b5 {[%emt 0:00:00]} 13. c3 {[%emt 0:00:00]} Nb6 {[%emt 0:00:00]} 14. Rfe1 {[%emt 0:00:00]} Nc4 {[%emt 0:00:00]} 15. Rab1 {[%emt 0:00:00]} Nxd2 {[%emt 0:00:00]} 16. Nxd2 {[%emt 0:00:00]} h6 {[%emt 0:03:44]} 17. Re2 {[%emt 0:00:00]} Rfd8 {[%emt 0:03:18]} 18. f3 {[%emt 0:00:00]} Bd6 {[%emt 0:03:26]} 19. Bxd6 Rxd6 {[%emt 0:00:02]} 20. e4 {[%emt 0:00:00]} dxe4 {[%emt 0:00:25]} 21. fxe4 {[%emt 0:00:00]} Rd7 {[%emt 0:04:24]} 22. Rf1 {[%emt 0:00:00]} Rad8 {[%emt 0:04:48]} 23. Nf3 {[%emt 0:00:00]} Re7 {[%emt 0:02:25]} 24. g4 {[%emt 0:00:00]} Nh7 {[%emt 0:07:14]} 25. Kg2 {[%emt 0:02:55]} f6 {[%emt 0:08:52]} 26. e5 {[%emt 0:09:29]} Rf7 {[%emt 0:05:29]} 27. exf6 {[%emt 0:02:59]} Rxf6 {[%emt 0:00:15]} 28. Nd2 {[%emt 0:01:09]} Rxf1 {[%emt 0:01:24]} 29. Nxf1 {[%emt 0:01:06]} Kf7 {[%emt 0:02:01]} 30. Nd2 {[%emt 0:05:01]} Nf6 {[%emt 0:02:01]} 31. Nf3 {[%emt 0:03:02]} Nd5 {[%emt 0:01:53]} 32. Ne5+ {[%emt 0:02:12]} Ke7 {[%emt 0:00:38]} 33. Rf2 {[%emt 0:00:54]} Nf6 {[%emt 0:02:46]} 34. Nd3 {[%emt 0:02:33]} b6 {[%emt 0:04:59]} 35. Ne5 {[%emt 0:05:12]} Rd6 {[%emt 0:00:35]} 36. Re2 {[%emt 0:11:00]} Nd5 {[%emt 0:01:55]} 37. Kg3 {[%emt 0:02:46]} g5 {[%emt 0:02:55]} 38. Nd3 {[%emt 0:03:26]} Rd8 {[%emt 0:03:17]} 39. h4 {[%emt 0:05:05]} Rd6 {[%emt 0:01:34]} 40. hxg5 {[%emt 0:00:59]} hxg5 {[%emt 0:00:04]} 41. Rh2 {[%emt 0:00:59]} Nf6 {[%emt 0:01:08]} 42. Ne5 {[%emt 0:02:23]} c5 {[%emt 0:01:53]} 43. Nf3 {[%emt 0:01:14]} Ne4+ {[%emt 0:01:09]} 44. Kh3 {[%emt 0:01:53]} Kf6 {[%emt 0:00:53]} 45. Re2 {[%emt 0:00:42]} cxd4 {[%emt 0:02:23]} 46. cxd4 {[%emt 0:03:07]} Nc5 {[%emt 0:01:26]} 47. dxc5 {[%emt 0:00:38]} bxc5 {[%emt 0:00:02]} 48. Rd2 {[%emt 0:01:20]} Rxd2 {[%emt 0:00:16]} 49. Nxd2 {[%emt 0:00:01]} Ke5 {[%emt 0:00:49]} 50. Kg3 {[%emt 0:01:23]} Kd4 {[%emt 0:04:49]} 51. Nf3+ {[%emt 0:00:34]} Kd3 {[%emt 0:00:17]} 52. Nxg5 {[%emt 0:00:29]} Kc2 {[%emt 0:00:13]} 53. Nxe6 {[%emt 0:00:21]} c4 {[%emt 0:00:23]} 54. Nd4+ {[%emt 0:01:38]} Kxb2 {[%emt 0:00:12]} 55. Nxb5 {[%emt 0:00:12]} Kb3 {[%emt 0:00:39]} 56. g5 {[%emt 0:00:05]} Ka4 {[%emt 0:00:23]} 57. g6 {[%emt 0:00:08]} Kxb5 {[%emt 0:00:21]} 58. g7 {[%emt 0:00:08]} c3 {[%emt 0:00:23]} 59. g8=Q {[%emt 0:00:08]} Kc5 {[%emt 0:00:39]} 60. Qg5+ {[%emt 0:01:13]} Kd4 {[%emt 0:00:11]} 61. Qc1 1-0

[Event "7. Arber-Senioren-Cup 2019"]
[Site "Bodenmais"]
[Date "2019.07.30"]
[Round "4.25"]
[White "Pisz, Bretislav"]
[Black "Schmidt, Matthias"]
[Result "0-1"]
[ECO "A15"]
[WhiteElo "1599"]
[BlackElo "2020"]
[Annotator "NA"]
[PlyCount "110"]
[EventDate "2019.07.27"]
[EventType "swiss"]
[EventCountry "GER"]
[SourceTitle "playchess.com"]
[Source "ChessBase"]
[SourceQuality "1"]
[TimeControl "5400+30"]

1. c4 {[%emt 0:00:00]} Nf6 {[%emt 0:00:00]} 2. f4 {[%emt 0:00:00]} e6 {[%emt 0:00:00]} 3. Nf3 {[%emt 0:00:00]} d5 {[%emt 0:00:00]} 4. e3 {[%emt 0:00:00]} c5 {[%emt 0:00:00]} 5. b3 {[%emt 0:00:00]} Nc6 {[%emt 0:00:00]} 6. d3 {[%emt 0:00:00]} a6 {[%emt 0:00:00]} 7. a4 {[%emt 0:00:00]} Bd7 {[%emt 0:00:00]} 8. Ne5 {[%emt 0:00:00]} Qc7 {[%emt 0:00:00]} 9. Bb2 {[%emt 0:00:00]} d4 {[%emt 0:00:00]} 10. Nxd7 {[%emt 0:00:00]} Qxd7 {[%emt 0:00:00]} 11. e4 {[%emt 0:00:00]} e5 {[%emt 0:00:00]} 12. f5 {[%emt 0:00:00]} Bd6 {[%emt 0:00:00]} 13. Be2 {[%emt 0:00:00]} Bc7 {[%emt 0:00:00]} 14. O-O {[%emt 0:00:00]} O-O-O {[%emt 0:00:00]} 15. h3 {[%emt 0:00:00]} Qe7 {[%emt 0:00:00]} 16. g4 {[%emt 0:00:00]} h6 {[%emt 0:00:00]} 17. Na3 {[%emt 0:00:00]} Ba5 {[%emt 0:01:25]} 18. Nc2 {[%emt 0:00:00]} Nd7 {[%emt 0:03:16]} 19. Bc1 {[%emt 0:00:00]} Rdg8 {[%emt 0:07:20]} 20. Bd2 {[%emt 0:00:00]} Bxd2 {[%emt 0:02:48]} 21. Qxd2 {[%emt 0:00:00]} Qg5 {[%emt 0:02:25]} 22. Qxg5 {[%emt 0:00:26]} hxg5 {[%emt 0:00:03]} 23. Kg2 {[%emt 0:00:19]} Kc7 {[%emt 0:01:23]} 24. Ne1 {[%emt 0:04:16]} Nb4 {[%emt 0:00:59]} 25. Rc1 {[%emt 0:02:04]} f6 {[%emt 0:04:33]} 26. Nc2 {[%emt 0:08:17]} Na2 {[%emt 0:01:56]} 27. Ra1 {[%emt 0:03:47]} Nc3 {[%emt 0:01:09]} 28. Bf3 {[%emt 0:00:04]} Ra8 {[%emt 0:03:22]} 29. Na3 {[%emt 0:01:42]} Nb8 {[%emt 0:01:44]} 30. Nb1 {[%emt 0:01:34]} Nxb1 {[%emt 0:00:55]} 31. Raxb1 {[%emt 0:00:01]} Nc6 {[%emt 0:00:20]} 32. Kg3 {[%emt 0:01:30]} Nb4 {[%emt 0:00:23]} 33. Be2 {[%emt 0:03:18]} b5 {[%emt 0:05:50]} 34. cxb5 {[%emt 0:03:04]} axb5 {[%emt 0:00:09]} 35. Rfc1 {[%emt 0:01:17]} Kb6 {[%emt 0:00:24]} 36. Ra1 {[%emt 0:01:28]} bxa4 {[%emt 0:00:40]} 37. bxa4 {[%emt 0:02:38]} Ra5 {[%emt 0:00:58]} 38. Ra3 {[%emt 0:03:15]} Kc6 {[%emt 0:01:39]} 39. Bd1 {[%emt 0:02:20]} Rb8 {[%emt 0:00:25]} 40. h4 {[%emt 0:01:01]} Na6 {[%emt 0:00:31]} 41. hxg5 {[%emt 0:01:12]} fxg5 {[%emt 0:00:02]} 42. Bb3 {[%emt 0:01:25]} Rh8 {[%emt 0:01:17]} 43. Bd5+ {[%emt 0:01:42]} Kb6 {[%emt 0:02:36]} 44. Bc4 {[%emt 0:01:19]} Nb4 {[%emt 0:00:24]} 45. Raa1 {[%emt 0:01:03]} Raa8 {[%emt 0:03:17]} 46. Rh1 {[%emt 0:02:56]} Rxh1 {[%emt 0:10:58]} 47. Rxh1 {[%emt 0:00:19]} Rxa4 {[%emt 0:00:25]} 48. Rh7 {[%emt 0:01:40]} Ra7 {[%emt 0:00:23]} 49. Rh5 {[%emt 0:00:00]} Nxd3 {[%emt 0:03:53]} 50. Bxd3 {[%emt 0:00:13]} Ra3 {[%emt 0:01:14]} 51. Rxg5 {[%emt 0:00:05]} Rxd3+ {[%emt 0:00:11]} 52. Kf2 {[%emt 0:00:45]} c4 {[%emt 0:01:37]} 53. Rxg7 c3 54. Rh7 {[%emt 0:07:30]} c2 {[%emt 0:01:56]} 55. Rh1 {[%emt 0:02:53]} Rd1 {[%emt 0:00:17]} 0-1

[Event "7. Arber-Senioren-Cup 2019"]
[Site "Bodenmais"]
[Date "2019.07.30"]
[Round "4.26"]
[White "Riha, Peter"]
[Black "Oberhofer, Max"]
[Result "0-1"]
[ECO "E15"]
[WhiteElo "1720"]
[BlackElo "2187"]
[Annotator "NA"]
[PlyCount "74"]
[EventDate "2019.07.27"]
[EventType "swiss"]
[EventCountry "GER"]
[SourceTitle "playchess.com"]
[Source "ChessBase"]
[SourceQuality "1"]
[TimeControl "5400+30"]

1. d4 {[%emt 0:00:00]} Nf6 {[%emt 0:00:00]} 2. c4 {[%emt 0:00:00]} e6 {[%emt 0:00:00]} 3. Nf3 {[%emt 0:00:00]} b6 {[%emt 0:00:00]} 4. g3 {[%emt 0:00:00]} Bb7 {[%emt 0:00:00]} 5. Bg2 {[%emt 0:00:00]} d5 {[%emt 0:00:00]} 6. Ne5 {[%emt 0:00:00]} Be7 {[%emt 0:00:00]} 7. O-O {[%emt 0:00:00]} O-O {[%emt 0:00:00]} 8. Nc3 {[%emt 0:00:00]} c6 {[%emt 0:00:00]} 9. b3 {[%emt 0:00:00]} Na6 {[%emt 0:00:00]} 10. Bb2 {[%emt 0:00:00]} Rc8 {[%emt 0:00:00]} 11. cxd5 {[%emt 0:00:00]} exd5 {[%emt 0:00:00]} 12. e3 {[%emt 0:00:00]} Nc7 {[%emt 0:00:00]} 13. Ne2 {[%emt 0:00:00]} Ne6 {[%emt 0:00:00]} 14. Rc1 {[%emt 0:01:03]} h5 {[%emt 0:00:00]} 15. Rc2 {[%emt 0:07:16]} Bd6 {[%emt 0:00:00]} 16. Nc1 {[%emt 0:04:31]} h4 17. Ncd3 {[%emt 0:03:23]} Ne4 {[%emt 0:02:24]} 18. Qg4 {[%emt 0:08:55]} hxg3 {[%emt 0:05:02]} 19. hxg3 {[%emt 0:01:59]} Nf6 {[%emt 0:02:58]} 20. Qd1 {[%emt 0:03:27]} Rc7 {[%emt 0:06:28]} 21. Qc1 {[%emt 0:02:47]} Qa8 {[%emt 0:03:58]} 22. Qb1 {[%emt 0:06:01]} Re8 {[%emt 0:01:04]} 23. Rfc1 {[%emt 0:02:15]} Ree7 {[%emt 0:01:18]} 24. Qa1 Qe8 25. Qb1 {[%emt 0:10:17]} Ng5 {[%emt 0:03:41]} 26. Qa1 {[%emt 0:06:06]} Nfe4 {[%emt 0:00:41]} 27. Kf1 {[%emt 0:04:32]} f6 {[%emt 0:01:06]} 28. Nf3 {[%emt 0:00:13]} Ba6 {[%emt 0:02:27]} 29. Nfe1 {[%emt 0:05:28]} Nxg3+ {[%emt 0:06:36]} 30. Kg1 {[%emt 0:02:14]} Nf5 {[%emt 0:02:22]} 31. Rd2 {[%emt 0:03:27]} Ne4 {[%emt 0:00:46]} 32. Rdd1 {[%emt 0:01:33]} Nh4 {[%emt 0:00:55]} 33. Qb1 {[%emt 0:03:05]} Nxg2 {[%emt 0:04:33]} 34. Nxg2 {[%emt 0:00:31]} Qh5 {[%emt 0:01:02]} 35. Ndf4 {[%emt 0:02:45]} Bxf4 {[%emt 0:02:06]} 36. Nxf4 {[%emt 0:01:29]} Qg4+ {[%emt 0:00:14]} 37. Ng2 {[%emt 0:00:19]} Be2 {[%emt 0:00:15]} 0-1